bitfinex-derivatives/quotes_BTCF0:USTF0_20240830
["timestamp","ask_amount","ask_price","bid_price","bid_amount"]
[1725042787478,0.05198293,59058.0,59054.0,0.6008]
[1725042787678,0.13665893,59058.0,59057.0,0.24]
[1725042787980,0.084676,59058.0,59057.0,0.24]
[1725042788477,0.084676,59058.0,59052.0,0.00025399]
[1725042788478,1.70876,59058.0,59052.0,0.00025399]
[1725042788678,0.530164,59053.0,59052.0,0.00025399]
[1725042788880,0.58214693,59053.0,59052.0,0.00025399]
[1725042789076,1.00570185,59053.0,59052.0,0.00025399]
[1725042789570,0.82114693,59053.0,59052.0,0.00025399]
[1725042789881,1.92918693,59053.0,59052.0,0.00025399]
[1725042790073,0.083699,59041.0,59040.0,0.3286]
[1725042790279,0.084711,59033.0,59032.0,0.24]
[1725042790786,0.084713,59031.0,59030.0,0.3286]
[1725042790982,0.0520021,59036.0,59027.0,0.6008]
[1725042790983,0.084718,59028.0,59027.0,0.6008]
[1725042791183,0.084718,59028.0,59027.0,0.60105399]
[1725042791487,0.083718,59028.0,59027.0,0.00025399]
[1725042791981,0.082718,59028.0,59027.0,0.00025399]
[1725042792879,0.084718,59028.0,59027.0,0.00125399]
[1725042793284,0.002,59028.0,59027.0,0.32597299]
[1725042793476,0.002,59028.0,59027.0,0.68777299]
[1725042793477,0.003,59028.0,59027.0,0.68777299]
[1725042793677,0.087718,59028.0,59027.0,0.24225399]
[1725042793884,0.172436,59028.0,59027.0,0.00225399]
[1725042794093,0.35779042,59028.0,59027.0,0.00225399]
[1725042794293,0.173436,59028.0,59027.0,0.00225399]
[1725042794989,0.173436,59028.0,59017.0,0.24]
[1725042794990,0.083732,59018.0,59017.0,0.24]
[1725042795182,0.14450644,59018.0,59017.0,0.24]
[1725042795587,0.084738,59014.0,59013.0,0.6008]
[1725042795780,0.14451244,59014.0,59013.0,0.6008]
[1725042795975,0.19552951,59014.0,59013.0,0.685539]
[1725042796476,0.19552951,59014.0,59009.0,0.461945]
[1725042796477,0.084744,59010.0,59009.0,0.461945]
[1725042796683,0.19753571,59010.0,59009.0,0.461945]
[1725042796877,0.11279171,59010.0,59009.0,0.461945]
[1725042797682,0.11279171,59010.0,59009.0,0.826745]
[1725042799492,0.11279554,59010.0,59009.0,0.829745]
[1725042800095,0.11279554,59010.0,59009.0,0.745]
[1725042800384,0.19753954,59010.0,59009.0,0.745]
[1725042800789,0.11279554,59010.0,59009.0,0.745]
[1725042800987,0.11279554,59010.0,59009.0,0.829745]
[1725042802092,0.19753954,59010.0,59009.0,0.829745]
[1725042802894,0.084744,59010.0,59009.0,0.829745]
[1725042803396,0.3608,59003.0,58992.0,0.0129212]
[1725042803696,1.9492,59010.0,58970.0,0.1361]
[1725042803697,0.9616,58993.0,58970.0,0.1361]
[1725042803883,0.64672748,59009.0,58970.0,0.1361]
[1725042803884,0.3608,58971.0,58970.0,0.1361]
[1725042804086,0.3608,58981.0,58975.0,0.084794]
[1725042804087,0.3608,58976.0,58975.0,0.084794]
[1725042804288,0.3608,58986.0,58980.0,0.084787]
[1725042804485,0.35280001,58993.0,58982.0,0.3608]
[1725042804696,0.00025421,58992.0,58982.0,0.3608]
[1725042804994,0.00025421,58992.0,58983.0,0.16956]
[1725042805190,0.00025421,58992.0,58991.0,0.324771]
[1725042805785,0.00025421,58992.0,58991.0,1.433331]
[1725042805987,0.00025421,58992.0,58991.0,2.033331]
[1725042806191,0.00025421,58992.0,58991.0,1.433331]
[1725042806493,0.00025421,58992.0,58991.0,0.924771]
[1725042806692,0.00025421,58992.0,58991.0,2.209771]
[1725042806893,0.00025421,58992.0,58991.0,2.033331]
[1725042807095,0.00025421,58992.0,58991.0,1.621771]
[1725042807498,0.00025421,58992.0,58991.0,1.609771]
[1725042807709,0.00025421,58992.0,58991.0,1.613771]
[1725042808203,0.00025421,58992.0,58991.0,1.440331]
[1725042808391,0.00025421,58992.0,58991.0,1.616771]
[1725042808690,0.00025421,58992.0,58991.0,1.613771]
[1725042808895,0.00025421,58992.0,58991.0,2.214771]
[1725042809091,0.00025421,58992.0,58991.0,2.210771]
[1725042809400,0.00025421,58992.0,58991.0,2.034331]
[1725042809700,0.00025421,58992.0,58991.0,2.210771]
[1725042809892,0.00025421,58992.0,58991.0,2.036331]
[1725042810198,0.00025421,58992.0,58991.0,1.11156]
[1725042810391,0.00125421,58992.0,58991.0,0.6]
[1725042810588,0.00125421,58992.0,58991.0,0.601]
[1725042810794,0.08602321,58992.0,58991.0,0.601]
[1725042810994,0.08602321,58992.0,58991.0,0.6]
[1725042811199,0.084777,58987.0,58986.0,0.00025421]
[1725042811396,0.445577,58987.0,58986.0,0.00025421]
[1725042811704,0.3608,58987.0,58986.0,0.60025421]
[1725042811999,0.445577,58987.0,58986.0,0.60025421]
[1725042813292,0.3608,58987.0,58986.0,0.60025421]
[1725042813495,0.3638,58987.0,58986.0,0.60125421]
[1725042813795,0.3708,58987.0,58986.0,0.60225421]
[1725042814193,0.3708,58987.0,58986.0,0.68703221]
[1725042815489,0.3708,58987.0,58986.0,0.00225421]
[1725042815490,1.973731,58987.0,58986.0,0.00225421]
[1725042815896,0.084799,58972.0,58966.0,0.24]
[1725042816204,0.3608,58971.0,58969.0,0.084802]
[1725042816591,0.3608,58971.0,58970.0,0.084801]
[1725042817003,0.3608,58971.0,58970.0,0.324801]
[1725042818100,0.3618,58971.0,58970.0,0.334801]
[1725042818497,0.001,58971.0,58970.0,1.443521]
[1725042818701,0.3608,58987.0,58975.0,0.084794]
[1725042818900,0.3608,58987.0,58986.0,0.324778]
[1725042819300,0.445577,58987.0,58986.0,0.6]
[1725042819603,0.3608,58987.0,58975.0,0.084793]
[1725042819801,0.3608,58977.0,58975.0,0.084793]
[1725042820002,0.3608,58977.0,58976.0,0.084792]
[1725042820003,0.3598,58977.0,58976.0,0.084792]
[1725042820192,0.3598,58977.0,58976.0,0.684792]
[1725042821194,0.3628,58977.0,58976.0,0.685792]
[1725042821999,0.3708,58977.0,58976.0,0.686792]
[1725042825302,0.455591,58977.0,58976.0,0.686792]
[1725042825609,0.455591,58977.0,58976.0,0.602]
[1725042826110,0.455591,58977.0,58976.0,0.002]
[1725042826299,0.964271,58977.0,58976.0,0.002]
[1725042826608,0.455591,58977.0,58976.0,0.002]
[1725042827206,0.3708,58977.0,58976.0,0.086792]
[1725042828801,0.455591,58977.0,58976.0,0.002]
[1725042828995,0.455591,58977.0,58976.0,0.086792]
[1725042829402,0.26661801,58977.0,58976.0,0.086792]
[1725042829807,0.26361801,58977.0,58976.0,0.085792]
[1725042830009,0.26661801,58977.0,58976.0,0.085792]
[1725042830309,0.25861801,58977.0,58976.0,0.084792]
[1725042830497,0.26761801,58977.0,58976.0,0.085792]
[1725042831201,0.17882701,58977.0,58976.0,0.086792]
[1725042831402,0.17882701,58977.0,58973.0,0.01015702]
[1725042831403,1.02382701,58977.0,58973.0,0.01015702]
[1725042831612,1.02382701,58977.0,58970.0,0.00113421]
[1725042831613,0.2544,58971.0,58970.0,0.00113421]
[1725042831814,0.08482,58957.0,58956.0,0.06630292]
[1725042832005,0.3608,58957.0,58953.0,0.06630292]
[1725042832200,0.3608,58957.0,58947.0,0.31662634]
[1725042832399,0.3608,58952.0,58947.0,0.25032342]
[1725042832617,0.3608,58952.0,58951.0,0.084828]
[1725042832913,0.3598,58952.0,58951.0,0.084828]
[1725042833111,0.08507742,58955.0,58951.0,0.084828]
[1725042833316,0.00025442,58955.0,58951.0,0.084828]
[1725042833513,0.00025442,58955.0,58952.0,0.24]
[1725042833707,0.00025442,58955.0,58954.0,0.084824]
[1725042834407,0.00025442,58955.0,58952.0,0.24]
[1725042834616,0.00025442,58955.0,58954.0,0.084824]
[1725042835513,0.00225442,58955.0,58954.0,0.084824]
[1725042836807,0.00425442,58955.0,58954.0,0.084824]
[1725042837815,0.00025442,58955.0,58954.0,0.084824]
[1725042838001,0.00125442,58955.0,58954.0,0.084824]
[1725042838406,0.00025442,58955.0,58954.0,0.684824]
[1725042838604,0.00025442,58955.0,58954.0,0.689824]
[1725042839214,0.00125442,58955.0,58954.0,0.695824]
[1725042840618,0.00025442,58955.0,58954.0,0.692824]
[1725042841210,0.00025442,58955.0,58954.0,0.689824]
[1725042841420,0.00025442,58955.0,58954.0,0.688824]
[1725042841809,0.00225442,58955.0,58954.0,0.686824]
[1725042842208,0.00225442,58955.0,58954.0,0.684824]
[1725042842209,0.00425442,58955.0,58954.0,0.684824]
[1725042843609,0.00425442,58955.0,58954.0,0.75156146]
[1725042843913,0.00025442,58955.0,58954.0,0.75656312]
[1725042844214,0.00025442,58955.0,58954.0,0.689824]
[1725042844406,0.08507742,58955.0,58954.0,0.605]
[1725042844614,0.08507742,58955.0,58954.0,0.603]
[1725042844810,0.08507742,58955.0,58954.0,0.605]
[1725042845007,0.08507742,58955.0,58954.0,0.602]
[1725042845319,0.08507742,58955.0,58954.0,0.003]
[1725042845518,0.41190042,58955.0,58954.0,0.001]
[1725042845707,1.52078042,58955.0,58954.0,0.001]
[1725042846109,1.43595742,58955.0,58954.0,0.001]
[1725042846315,0.08707742,58955.0,58954.0,0.001]
[1725042846718,0.17190042,58955.0,58954.0,0.001]
[1725042847016,1.01190042,58955.0,58954.0,0.001]
[1725042847223,1.52078042,58955.0,58954.0,0.001]
[1725042847423,0.084833,58948.0,58947.0,0.6]
[1725042847719,0.3608,58948.0,58947.0,0.684834]
[1725042848122,0.00425442,58955.0,58954.0,0.084824]
[1725042848428,0.00425442,58955.0,58954.0,0.324824]
[1725042848608,0.00025442,58955.0,58954.0,0.324824]
[1725042848809,0.00025442,58955.0,58954.0,0.409648]
[1725042849115,0.00025442,58955.0,58954.0,0.833704]
[1725042849325,0.00025442,58955.0,58954.0,1.194504]
[1725042849715,0.00025442,58955.0,58954.0,1.34608227]
[1725042850226,0.00025442,58955.0,58954.0,1.281328]
[1725042850526,0.00325442,58955.0,58954.0,1.281328]
[1725042850720,0.00325442,58955.0,58954.0,1.796504]
[1725042851215,0.00025442,58955.0,58954.0,0.326824]
[1725042851412,0.00025442,58955.0,58954.0,0.328824]
[1725042851828,0.00025442,58955.0,58954.0,0.42405313]
[1725042852213,0.00025442,58955.0,58954.0,0.4908074]
[1725042852414,0.00025442,58955.0,58954.0,0.42405313]
[1725042852818,0.00025442,58955.0,58954.0,0.33922913]
[1725042853022,0.00025442,58955.0,58954.0,0.33722913]
[1725042853332,0.084799,58972.0,58970.0,0.0848]
[1725042853526,0.084798,58973.0,58970.0,0.0848]
[1725042853915,0.3608,58974.0,58969.0,0.24]
[1725042853916,0.3608,58974.0,58971.0,0.6]
[1725042854116,0.3608,58974.0,58973.0,0.084797]
[1725042855426,0.084798,58972.0,58971.0,0.60092]
[1725042855620,0.084798,58972.0,58971.0,0.6]
[1725042855836,0.3608,58974.0,58971.0,0.6]
[1725042855837,0.3738,58974.0,58971.0,0.6]
[1725042856420,0.3738,58974.0,58973.0,0.001]
[1725042856421,0.3818,58974.0,58973.0,0.001]
[1725042856631,0.466595,58974.0,58973.0,0.001]
[1725042857221,0.084798,58972.0,58971.0,0.60188]
[1725042857424,0.084798,58972.0,58971.0,0.601]
[1725042857618,0.098798,58972.0,58971.0,0.602]
[1725042858029,0.084798,58972.0,58971.0,0.6]
[1725042858235,0.50872,58972.0,58968.0,0.00025442]
[1725042858436,0.445603,58969.0,58968.0,0.00025442]
[1725042858734,0.684603,58969.0,58968.0,0.00025442]
[1725042858935,0.444603,58969.0,58968.0,0.00025442]
[1725042859123,1.553363,58969.0,58968.0,0.00025442]
[1725042859325,1.638166,58969.0,58968.0,0.00025442]
[1725042859635,1.921466,58969.0,58968.0,0.00025442]
[1725042860040,2.206269,58969.0,58968.0,0.00025442]
[1725042860264,0.084818,58958.0,58957.0,0.084819]
[1725042860531,0.082823,58955.0,58950.0,0.2]
[1725042860838,0.3608,58951.0,58947.0,0.2]
[1725042861038,0.44563,58951.0,58950.0,0.084829]
[1725042861225,0.44463,58951.0,58950.0,0.084829]
[1725042861826,0.44463,58951.0,58950.0,0.090829]
[1725042862426,0.529461,58951.0,58950.0,0.006]
[1725042862623,1.55355,58951.0,58950.0,0.006]
[1725042862834,0.95355,58951.0,58950.0,0.006]
[1725042863423,1.09145,58951.0,58950.0,0.006]
[1725042863922,0.078836,58946.0,58945.0,0.00025442]
[1725042864136,0.439636,58946.0,58945.0,0.00025442]
[1725042864939,0.434636,58946.0,58945.0,0.00025442]
[1725042865737,0.436636,58946.0,58945.0,0.02125442]
[1725042866241,0.436636,58946.0,58945.0,0.10609142]
[1725042867325,0.436636,58946.0,58945.0,0.02125442]
[1725042867728,0.436636,58946.0,58945.0,0.62125442]
[1725042870132,0.3628,58946.0,58945.0,1.29988842]
[1725042870727,0.3628,58946.0,58945.0,0.70609142]
[1725042870938,0.002,58946.0,58945.0,1.22540326]
[1725042872639,0.00025442,58956.0,58945.0,2.10136626]
[1725042872842,0.00025442,58956.0,58955.0,0.324823]
[1725042873231,0.00025442,58956.0,58955.0,0.924823]
[1725042874044,0.00225442,58956.0,58955.0,0.924823]
[1725042874546,0.00125442,58956.0,58955.0,0.924823]
[1725042874726,0.00025442,58956.0,58955.0,0.924823]
[1725042874927,0.36105442,58956.0,58955.0,0.654823]
[1725042875437,0.36105442,58956.0,58955.0,0.6]
[1725042875438,0.44587542,58956.0,58955.0,0.6]
[1725042875632,0.44587542,58956.0,58952.0,0.0102209]
[1725042875836,0.084825,58954.0,58951.0,0.084827]
[1725042876140,0.084825,58954.0,58947.0,0.24]
[1725042876141,0.36105442,58956.0,58947.0,0.324834]
[1725042876334,0.3608,58951.0,58947.0,0.33502444]
[1725042876532,0.3608,58951.0,58948.0,0.084833]
[1725042877044,0.3578,58951.0,58944.0,0.084837]
[1725042877233,0.445636,58946.0,58941.0,0.084841]
[1725042877543,0.441636,58946.0,58940.0,0.36066254]
[1725042877732,0.3498,58946.0,58945.0,0.08509142]
[1725042877930,0.3448,58946.0,58945.0,0.08509142]
[1725042878338,0.3448,58946.0,58945.0,0.00025442]
[1725042878544,0.3458,58946.0,58945.0,0.00525442]
[1725042879344,0.3458,58946.0,58945.0,0.09009142]
[1725042879531,0.3468,58946.0,58945.0,0.09409142]
[1725042881632,0.002,58946.0,58945.0,0.09409142]
[1725042882032,0.002,58946.0,58945.0,0.69409142]
[1725042882439,0.002,58946.0,58945.0,0.77892842]
[1725042882839,0.002,58946.0,58945.0,0.69409142]
[1725042883546,0.447636,58946.0,58945.0,0.60925442]
[1725042883741,0.3628,58946.0,58945.0,0.00925442]
[1725042883938,0.447636,58946.0,58945.0,0.00925442]
[1725042884546,0.3628,58946.0,58945.0,0.29409142]
[1725042885845,0.002,58946.0,58945.0,0.73972842]
[1725042886447,0.002,58946.0,58945.0,0.65489142]
[1725042887954,0.002,58946.0,58945.0,0.29409142]
[1725042890765,0.002,58946.0,58945.0,0.09409142]
[1725042890968,0.002,58946.0,58945.0,0.00925442]
[1725042891167,0.086836,58946.0,58945.0,0.00925442]
[1725042893179,0.086836,58946.0,58945.0,0.09409142]
[1725042893570,0.002,58946.0,58945.0,0.09409142]
[1725042893770,0.3628,58946.0,58945.0,0.09409142]
[1725042894184,0.532472,58946.0,58945.0,0.00925442]
[1725042894371,0.447636,58946.0,58945.0,0.00925442]
[1725042894575,0.447636,58946.0,58945.0,0.60925442]
[1725042894775,0.3628,58946.0,58945.0,0.89409142]
[1725042896078,0.001,58946.0,58945.0,0.88909142]
[1725042896272,0.011,58946.0,58945.0,0.88509142]
[1725042896583,0.017,58946.0,58945.0,0.88509142]
[1725042896783,0.006,58946.0,58945.0,0.88509142]
[1725042896997,0.012,58946.0,58945.0,0.88509142]
[1725042897478,0.017,58946.0,58945.0,0.88509142]
[1725042897879,0.011,58946.0,58945.0,0.88509142]
[1725042898073,0.016,58946.0,58945.0,0.88509142]
[1725042898379,0.016,58946.0,58945.0,0.89513042]
[1725042898985,0.016,58946.0,58945.0,0.68509142]
[1725042899294,0.3728,58946.0,58945.0,0.88509142]
[1725042899793,0.3718,58946.0,58945.0,0.88509142]
[1725042900172,0.011,58946.0,58945.0,0.88509142]
[1725042900376,0.012,58946.0,58945.0,0.88509142]
[1725042901583,0.35236981,58957.0,58946.0,0.084835]
[1725042901779,0.35236981,58957.0,58956.0,0.2]
[1725042901979,0.35236981,58957.0,58956.0,0.284821]
[1725042902689,0.3608,58977.0,58961.0,0.169628]
[1725042902895,0.084792,58976.0,58975.0,0.2]
[1725042903188,0.3608,58977.0,58972.0,0.2]
[1725042903385,0.3608,58977.0,58973.0,0.6]
[1725042903584,0.084802,58970.0,58965.0,0.2]
[1725042903779,0.084802,58970.0,58962.0,0.5024]
[1725042903780,0.3608,58966.0,58962.0,0.14185442]
[1725042904178,0.3608,58966.0,58964.0,0.084809]
[1725042904380,0.3608,58971.0,58963.0,0.6]
[1725042904582,0.3608,58971.0,58964.0,0.08481]
[1725042904781,0.084808,58965.0,58964.0,0.08481]
[1725042905181,0.008,58966.0,58963.0,0.6]
[1725042905397,0.008,58966.0,58962.0,0.00125442]
[1725042905398,0.169622,58963.0,58962.0,0.00125442]
[1725042905695,0.815233,58963.0,58962.0,0.00125442]
[1725042905898,1.93676661,58963.0,58962.0,0.00125442]
[1725042906099,2.02386737,58963.0,58962.0,0.00125442]
[1725042906495,2.04560121,58963.0,58962.0,0.00125442]
[1725042906699,2.09767821,58963.0,58962.0,0.00125442]
[1725042907207,2.08994437,58963.0,58962.0,0.00125442]
[1725042907504,1.977033,58963.0,58962.0,0.00125442]
[1725042907702,1.991033,58963.0,58962.0,0.00225442]
[1725042908100,1.906222,58963.0,58962.0,0.00225442]
[1725042909302,1.066222,58963.0,58962.0,0.00225442]
[1725042909501,0.981411,58963.0,58962.0,0.00225442]
[1725042910205,1.906222,58963.0,58962.0,0.00225442]
[1725042911304,1.306222,58963.0,58962.0,0.00225442]
[1725042911607,1.906222,58963.0,58962.0,0.00225442]
[1725042911803,1.99959792,58963.0,58962.0,0.00225442]
[1725042912199,0.084843,58941.0,58940.0,0.022]
[1725042912397,0.445643,58941.0,58940.0,0.022]
[1725042913714,0.444643,58941.0,58940.0,0.022]
[1725042914096,0.446643,58941.0,58940.0,0.022]
[1725042914411,0.448643,58941.0,58940.0,0.022]
[1725042915096,0.448643,58941.0,58940.0,0.106844]
[1725042918701,0.45897074,58941.0,58940.0,0.106844]
[1725042919098,0.45897074,58941.0,58940.0,0.022]
[1725042919296,0.54381374,58941.0,58940.0,0.022]
[1725042919712,1.05281374,58941.0,58940.0,0.022]
[1725042920011,0.54381374,58941.0,58940.0,0.022]
[1725042921014,1.05281374,58941.0,58940.0,0.022]
[1725042921315,0.54381374,58941.0,58940.0,0.022]
[1725042921504,1.05281374,58941.0,58940.0,0.022]
[1725042922314,1.10490457,58941.0,58940.0,0.022]
[1725042922909,1.78974757,58941.0,58940.0,0.022]
[1725042924112,1.62006157,58941.0,58935.0,0.00025442]
[1725042924319,0.084863,58927.0,58920.0,0.3286]
[1725042924614,0.445663,58927.0,58921.0,0.7384]
[1725042924814,1.039646,58927.0,58921.0,0.7384]
[1725042925015,0.954783,58927.0,58921.0,0.7384]
[1725042925216,0.445663,58927.0,58921.0,0.1384]
[1725042925417,0.445663,58927.0,58921.0,0.13865442]
[1725042925920,0.3608,58927.0,58926.0,0.346864]
[1725042926218,0.3608,58927.0,58926.0,0.110864]
[1725042926513,0.3578,58927.0,58926.0,0.110864]
[1725042927206,0.3578,58927.0,58926.0,0.113864]
[1725042927407,0.3578,58927.0,58926.0,0.353864]
[1725042928012,0.3578,58927.0,58926.0,0.313864]
[1725042928211,0.3578,58927.0,58926.0,0.913864]
[1725042929617,0.084859,58930.0,58928.0,0.08486]
[1725042929917,0.084859,58930.0,58929.0,0.08486]
[1725042931316,0.16972,58929.0,58928.0,0.001]
[1725042931920,0.6788,58929.0,58928.0,0.001]
[1725042932722,0.083863,58927.0,58926.0,0.022]
[1725042932923,0.644663,58927.0,58926.0,0.022]
[1725042933219,0.729526,58927.0,58926.0,0.022]
[1725042934010,0.444663,58927.0,58926.0,0.023]
[1725042934215,0.002,58929.0,58926.0,0.023]
[1725042934422,0.002,58929.0,58928.0,0.284862]
[1725042934615,0.002,58929.0,58928.0,0.793942]
[1725042934825,0.002,58929.0,58928.0,0.369724]
[1725042935016,0.002,58929.0,58928.0,1.239604]
[1725042935213,0.002,58929.0,58928.0,1.839604]
[1725042935418,0.00025442,58932.0,58931.0,0.084857]
[1725042935720,0.00025442,58932.0,58931.0,0.284857]
[1725042936325,0.00025442,58932.0,58931.0,0.369714]
[1725042936530,0.3608,58940.0,58939.0,0.084846]
[1725042936817,0.3608,58944.0,58939.0,0.2]
[1725042937020,0.3608,58944.0,58943.0,0.28484]
[1725042937229,0.16432,58961.0,58943.0,0.28484]
[1725042937230,0.3608,58958.0,58943.0,0.5608]
[1725042937416,0.3608,58958.0,58940.0,0.60092]
[1725042937417,0.00120001,58968.0,58961.0,0.084813]
[1725042937727,0.05206607,58968.0,58967.0,0.2]
[1725042937927,0.00025442,58970.0,58967.0,0.2]
[1725042938111,0.05232049,58970.0,58967.0,0.2]
[1725042938318,0.00025442,58970.0,58967.0,0.2]
[1725042939529,0.01425442,58970.0,58967.0,0.2]
[1725042939926,0.01425442,58970.0,58967.0,0.285805]
[1725042939927,0.0803104,58970.0,58967.0,0.285805]
[1725042940129,0.02825442,58970.0,58969.0,0.084803]
[1725042940326,0.3608,58983.0,58969.0,0.6]
[1725042940537,0.3608,58983.0,58982.0,0.24]
[1725042940831,0.41284819,58983.0,58982.0,0.24]
[1725042941223,0.41284819,58983.0,58982.0,0.324784]
[1725042941224,0.3608,58983.0,58982.0,0.324784]
[1725042941529,0.00025442,58988.0,58987.0,0.084777]
[1725042941729,0.00025442,58993.0,58987.0,0.685577]
[1725042942036,0.00025442,58993.0,58988.0,0.24]
[1725042942037,0.08502242,58993.0,58988.0,0.24]
[1725042942326,0.00025442,58993.0,58992.0,0.324769]
[1725042942725,0.3608,59015.0,59004.0,0.084752]
[1725042942930,0.3608,59015.0,59012.0,0.24]
[1725042943325,0.3608,59015.0,59007.0,0.24]
[1725042943629,0.3608,59008.0,59005.0,0.60025419]
[1725042944625,0.3608,59008.0,59005.0,0.00025419]
[1725042944819,0.6008,59008.0,59005.0,0.00025419]
[1725042945226,0.445549,59006.0,59005.0,0.00025419]
[1725042945732,1.551989,59006.0,59005.0,0.00025419]
[1725042946139,1.551989,59006.0,58987.0,0.24]
[1725042946140,0.24,59000.0,58987.0,0.24]
[1725042946325,0.3608,58990.0,58982.0,0.16428]
[1725042946630,0.3598,58990.0,58986.0,0.24]
[1725042946826,0.3588,58990.0,58986.0,0.24]
[1725042947529,0.3608,58988.0,58987.0,0.001]
[1725042947729,0.6008,58988.0,58987.0,0.001]
[1725042947932,0.6008,58988.0,58982.0,0.00025419]
[1725042947933,0.084782,58983.0,58982.0,0.00025419]
[1725042948233,0.685582,58983.0,58982.0,0.00025419]
[1725042948536,1.794222,58983.0,58982.0,0.00025419]
[1725042949145,0.444582,58983.0,58982.0,0.00025419]
[1725042949328,0.443582,58983.0,58982.0,0.00025419]
[1725042949634,0.683582,58983.0,58982.0,0.00025419]
[1725042949831,1.885004,58983.0,58982.0,0.00125419]
[1725042950031,1.896004,58983.0,58982.0,0.00225419]
[1725042951125,1.896004,58983.0,58982.0,0.00125419]
[1725042951126,1.888004,58983.0,58982.0,0.00125419]
[1725042951327,1.888004,58983.0,58982.0,0.00225419]
[1725042951328,1.896004,58983.0,58982.0,0.00225419]
[1725042952336,1.895004,58983.0,58982.0,0.00225419]
[1725042952729,1.90633896,58983.0,58982.0,0.00225419]
[1725042954038,1.90633896,58983.0,58982.0,1.9e-07]
[1725042954824,1.99112096,58983.0,58982.0,1.9e-07]
[1725042955333,1.00864,58982.0,58956.0,0.084821]
[1725042955545,1.00864,58982.0,58951.0,0.00088]
[1725042955546,0.084827,58952.0,58951.0,0.00088]
[1725042955838,0.084827,58952.0,58945.0,0.24]
[1725042955839,0.3608,58952.0,58945.0,0.24]
[1725042956039,0.3608,58952.0,58951.0,0.084828]
[1725042956434,0.3608,58952.0,58951.0,0.684828]
[1725042956636,0.36105444,58957.0,58956.0,0.084821]
[1725042957137,0.36105444,58957.0,58951.0,0.608]
[1725042957341,0.00025444,58957.0,58956.0,0.084821]
[1725042958140,0.3608,58968.0,58967.0,0.084805]
[1725042958343,0.3608,58968.0,58967.0,0.324805]
[1725042958551,0.3608,58968.0,58967.0,0.924805]
[1725042959743,0.3698,58968.0,58967.0,0.925805]
[1725042959940,0.3698,58968.0,58967.0,2.034565]
[1725042959941,0.009,58968.0,58967.0,2.034565]
[1725042960148,0.018,58968.0,58967.0,2.035565]
[1725042960639,0.00025444,58973.0,58972.0,0.084798]
[1725042960836,0.3608,58988.0,58984.0,0.084781]
[1725042961234,0.3608,58988.0,58975.0,0.3286]
[1725042961235,0.084778,58986.0,58979.0,0.084788]
[1725042961441,0.08478,58985.0,58980.0,0.084787]
[1725042961640,0.08478,58985.0,58978.0,0.24]
[1725042961641,0.3608,58988.0,58978.0,0.24]
[1725042961837,0.3608,58988.0,58983.0,0.084782]
[1725042962241,0.445577,58988.0,58983.0,0.084782]
[1725042962451,0.445577,58988.0,58984.0,0.084781]
[1725042962645,0.3608,58988.0,58987.0,0.24]
[1725042962952,0.3718,58988.0,58987.0,0.323777]
[1725042963149,0.011,58988.0,58987.0,0.323777]
[1725042963536,0.011,58988.0,58987.0,0.923777]
[1725042963537,0.016,58988.0,58987.0,0.923777]
[1725042964039,0.3608,59001.0,58987.0,0.923777]
[1725042964040,0.3608,59001.0,58988.0,0.50856]
[1725042964238,0.3608,59001.0,59000.0,0.324758]
[1725042966045,0.3618,59001.0,59000.0,0.325758]
[1725042966438,0.3618,59001.0,59000.0,0.326758]
[1725042967544,0.001,59001.0,59000.0,0.326758]
[1725042967943,1e-08,59006.0,59005.0,0.084751]
[1725042968147,1e-08,59006.0,59005.0,0.833191]
[1725042968541,1e-08,59006.0,59005.0,0.924751]
[1725042968752,1e-08,59006.0,59005.0,1.433191]
[1725042969438,1e-08,59006.0,59005.0,2.393991]
[1725042969643,1e-08,59006.0,59005.0,2.479742]
[1725042969846,1e-08,59006.0,59005.0,2.480742]
[1725042970046,0.3608,59024.0,59021.0,0.084727]
[1725042970340,0.084732,59018.0,59013.0,0.24]
[1725042970546,0.084734,59017.0,59013.0,0.24]
[1725042970749,0.3608,59019.0,59012.0,0.08474]
[1725042970750,0.084736,59016.0,59012.0,0.08474]
[1725042971053,0.3608,59019.0,59013.0,0.24]
[1725042971254,0.00025422,59020.0,59018.0,0.24]
[1725042971746,0.00025422,59020.0,59019.0,0.084731]
[1725042973054,0.08498322,59020.0,59019.0,0.001]
[1725042973451,0.08498322,59020.0,59019.0,0.002]
[1725042974356,0.08498322,59020.0,59019.0,0.00195986]
[1725042976362,1.33004936,59020.0,59019.0,0.00176388]
[1725042976541,1.39083098,59020.0,59019.0,0.00176388]
[1725042976740,0.28251098,59020.0,59019.0,0.00176388]
[1725042976942,0.22172936,59020.0,59019.0,0.00176388]
[1725042977248,0.13700036,59020.0,59019.0,0.00176388]
[1725042978146,0.05227136,59020.0,59019.0,0.08649488]
[1725042979057,0.05227136,59020.0,59019.0,0.68649488]
[1725042979556,0.05226781,59020.0,59019.0,0.68649488]
[1725042980252,0.445512,59033.0,59019.0,2.15561488]
[1725042980456,0.05200812,59032.0,59031.0,0.084713]
[1725042980752,0.05200812,59032.0,59031.0,0.324713]
[1725042981143,0.084715,59030.0,59028.0,0.24]
[1725042981349,0.05200812,59029.0,59028.0,0.24]
[1725042981550,0.05200812,59029.0,59028.0,0.324718]
[1725042982254,0.05200812,59029.0,59028.0,0.325718]
[1725042982563,0.084712,59032.0,59030.0,0.084715]
[1725042982749,0.3618,59033.0,59031.0,0.24]
[1725042982951,0.3618,59033.0,59032.0,0.084712]
[1725042983354,0.3608,59033.0,59032.0,0.084712]
[1725042983955,0.084687,59050.0,59034.0,0.084709]
[1725042984159,0.3608,59054.0,59049.0,0.24]
[1725042984458,0.084686,59050.0,59049.0,0.24]
[1725042984663,0.3608,59051.0,59042.0,0.24]
[1725042984961,0.084686,59050.0,59042.0,0.24]